[Event "*** Titled Tuesday Blitz"]
[Site "Chess.com"]
[Date "2020.04.14"]
[Round "5"]
[White "XiaoKangZhong"]
[Black "TastyTablet"]
[Result "0-1"]
[WhiteElo "2387"]
[BlackElo "2577"]
[TimeControl "180+1"]
[EndTime "10:50:30 PDT"]
[Termination "TastyTablet won by resignation"]

1. e4 {[%clk 0:03:00.9]} 1... e6 {[%clk 0:02:58.7]} 2. d4 {[%clk 0:03:00.6]}
2... d5 {[%clk 0:02:58.2]} 3. Nd2 {[%clk 0:03:00.8]} 3... c5 {[%clk 0:02:57.1]}
4. Ngf3 {[%clk 0:02:59.4]} 4... cxd4 {[%clk 0:02:52.9]} 5. exd5 {[%clk
0:02:59.5]} 5... exd5 {[%clk 0:02:51.6]} 6. Nb3 {[%clk 0:02:56.4]} 6... Bb4+
{[%clk 0:02:50.2]} 7. Bd2 {[%clk 0:02:55.7]} 7... Bxd2+ {[%clk 0:02:49.6]} 8.
Qxd2 {[%clk 0:02:56.6]} 8... Nf6 {[%clk 0:02:48.5]} 9. Bb5+ {[%clk 0:02:50.1]}
9... Bd7 {[%clk 0:02:48.2]} 10. Bxd7+ {[%clk 0:02:50.3]} 10... Nbxd7 {[%clk
0:02:48]} 11. O-O {[%clk 0:02:51.2]} 11... O-O {[%clk 0:02:47.4]} 12. Nbxd4
{[%clk 0:02:51]} 12... Nb6 {[%clk 0:02:46.5]} 13. b3 {[%clk 0:02:26]} 13... Ne4
{[%clk 0:02:43.1]} 14. Qf4 {[%clk 0:02:24.6]} 14... Re8 {[%clk 0:02:42.2]} 15.
h4 {[%clk 0:02:21.7]} 15... Qf6 {[%clk 0:02:41.9]} 16. Qxf6 {[%clk 0:02:20]}
16... Nxf6 {[%clk 0:02:42.1]} 17. Rfe1 {[%clk 0:02:15.2]} 17... Re4 {[%clk
0:02:41.8]} 18. Kf1 {[%clk 0:02:01.9]} 18... Rc8 {[%clk 0:02:39.2]} 19. g3
{[%clk 0:01:56.4]} 19... a6 {[%clk 0:02:38.7]} 20. Rad1 {[%clk 0:01:53.7]} 20...
g6 {[%clk 0:02:38]} 21. Ng5 {[%clk 0:01:53.1]} 21... Rxe1+ {[%clk 0:02:36.4]}
22. Kxe1 {[%clk 0:01:54]} 22... Kf8 {[%clk 0:02:34]} 23. Kd2 {[%clk 0:01:50]}
23... h6 {[%clk 0:02:32.1]} 24. Ngf3 {[%clk 0:01:45.9]} 24... Ne4+ {[%clk
0:02:32.5]} 25. Ke3 {[%clk 0:01:42.7]} 25... Nc3 {[%clk 0:02:27.5]} 26. Rd3
{[%clk 0:01:39.1]} 26... Nxa2 {[%clk 0:02:26.6]} 27. Ne5 {[%clk 0:01:33.3]}
27... Nb4 {[%clk 0:02:23]} 28. Rd2 {[%clk 0:01:31.8]} 28... Re8 {[%clk
0:02:21.7]} 29. Kf4 {[%clk 0:01:31.8]} 29... Kg7 {[%clk 0:02:19.6]} 30. g4
{[%clk 0:01:29.4]} 30... g5+ {[%clk 0:02:09.7]} 31. hxg5 {[%clk 0:01:21.4]}
31... hxg5+ {[%clk 0:02:09.8]} 32. Kf5 {[%clk 0:01:21.8]} 32... Nc8 {[%clk
0:02:09.3]} 33. Nxf7 {[%clk 0:00:42.8]} 33... Kxf7 {[%clk 0:02:08.2]} 34. Kxg5
{[%clk 0:00:43.5]} 34... Nd6 {[%clk 0:02:07.5]} 35. Rd1 {[%clk 0:00:39.6]} 35...
Ne4+ {[%clk 0:02:06.6]} 36. Kf4 {[%clk 0:00:29.3]} 36... Nxf2 {[%clk 0:02:06.2]}
37. Rf1 {[%clk 0:00:28.7]} 37... Ne4 {[%clk 0:02:05.9]} 38. g5 {[%clk
0:00:27.3]} 38... Kg6 {[%clk 0:02:05.6]} 39. Kg4 {[%clk 0:00:26.7]} 39... Nxg5
{[%clk 0:02:02.2]} 40. c3 {[%clk 0:00:21.6]} 40... Re4+ {[%clk 0:02:01]} 41. Kg3
{[%clk 0:00:21.8]} 41... Nd3 {[%clk 0:01:59.6]} 42. Rd1 {[%clk 0:00:20]} 42...
Nf4 {[%clk 0:01:51.1]} 43. b4 {[%clk 0:00:16.8]} 43... Nfe6 {[%clk 0:01:45.6]}
44. Nxe6 {[%clk 0:00:16.1]} 44... Rxe6 {[%clk 0:01:46.5]} 45. Rxd5 {[%clk
0:00:16.4]} 45... Re3+ {[%clk 0:01:46]} 46. Kf4 {[%clk 0:00:16.9]} 46... Re4+
{[%clk 0:01:43.7]} 47. Kg3 {[%clk 0:00:15.6]} 47... Rc4 {[%clk 0:01:43.8]} 48.
Rd3 {[%clk 0:00:15.1]} 48... Rxc3 {[%clk 0:01:43.2]} 49. Rxc3 {[%clk 0:00:16]}
49... Ne4+ {[%clk 0:01:43.5]} 50. Kf4 {[%clk 0:00:16.9]} 50... Nxc3 {[%clk
0:01:44.4]} 51. Ke5 {[%clk 0:00:17.8]} 51... Na2 {[%clk 0:01:44.3]} 52. Kd4
{[%clk 0:00:18.2]} 52... Nxb4 {[%clk 0:01:44.6]} 53. Kc5 {[%clk 0:00:19.1]}
53... Nc6 {[%clk 0:01:45.5]} 54. Kb6 {[%clk 0:00:19.5]} 54... a5 {[%clk
0:01:46.2]} 55. Kb5 {[%clk 0:00:19.5]} 55... Kf6 {[%clk 0:01:45.7]} 56. Ka4
{[%clk 0:00:20.4]} 56... Ke6 {[%clk 0:01:46]} 57. Kb5 {[%clk 0:00:21.3]} 57...
Kd6 {[%clk 0:01:46.5]} 58. Ka4 {[%clk 0:00:22.2]} 58... Kc5 {[%clk 0:01:46.4]}
59. Ka3 {[%clk 0:00:22.7]} 59... b5 {[%clk 0:01:47.3]} 60. Kb3 {[%clk
0:00:23.6]} 60... a4+ {[%clk 0:01:47.6]} 61. Ka3 {[%clk 0:00:24.5]} 61... Kc4
{[%clk 0:01:47.7]} 62. Ka2 {[%clk 0:00:24.7]} 62... Kc3 {[%clk 0:01:47.9]} 63.
Ka3 {[%clk 0:00:25]} 63... Kc2 {[%clk 0:01:48.5]} 64. Ka2 {[%clk 0:00:25.2]}
64... b4 {[%clk 0:01:48.8]} 65. Ka1 {[%clk 0:00:25.8]} 65... Na7 {[%clk
0:01:47.9]} 66. Ka2 {[%clk 0:00:25.9]} 66... Kd2 {[%clk 0:01:46.4]} 67. Kb2
{[%clk 0:00:25.8]} 67... Kd1 {[%clk 0:01:46.1]} 68. Ka2 {[%clk 0:00:26.2]} 68...
Kc2 {[%clk 0:01:44.2]} 69. Ka1 {[%clk 0:00:24]} 69... Nb5 {[%clk 0:01:44.4]} 70.
Ka2 {[%clk 0:00:24.1]} 70... b3+ {[%clk 0:01:44.7]} 71. Ka1 {[%clk 0:00:24.3]}
71... b2+ {[%clk 0:01:45.1]} 0-1

[Event "*** Titled Tuesday Blitz"]
[Site "Chess.com"]
[Date "2020.04.14"]
[Round "5"]
[White "Larax"]
[Black "english_player_89"]
[Result "1/2-1/2"]
[WhiteElo "2394"]
[BlackElo "2559"]
[TimeControl "180+1"]
[EndTime "10:50:30 PDT"]
[Termination "Game drawn by repetition"]

1. Nf3 {[%clk 0:03:00.9]} 1... Nf6 {[%clk 0:02:59.8]} 2. g3 {[%clk 0:02:57.5]}
2... g6 {[%clk 0:03:00.1]} 3. d3 {[%clk 0:02:56.9]} 3... Bg7 {[%clk 0:03:01]} 4.
e4 {[%clk 0:02:56.5]} 4... d6 {[%clk 0:03:00.3]} 5. Bg2 {[%clk 0:02:56.7]} 5...
O-O {[%clk 0:03:00.4]} 6. O-O {[%clk 0:02:56.9]} 6... Nc6 {[%clk 0:02:59.8]} 7.
Nbd2 {[%clk 0:02:54.8]} 7... e5 {[%clk 0:02:54.2]} 8. c3 {[%clk 0:02:54.3]} 8...
Re8 {[%clk 0:02:53.6]} 9. Re1 {[%clk 0:02:54.1]} 9... Bd7 {[%clk 0:02:49.8]} 10.
d4 {[%clk 0:02:50.4]} 10... Qc8 {[%clk 0:02:48.3]} 11. a4 {[%clk 0:02:44.6]}
11... Bh3 {[%clk 0:02:47.9]} 12. Bh1 {[%clk 0:02:44.3]} 12... h6 {[%clk
0:02:40.7]} 13. dxe5 {[%clk 0:02:40.3]} 13... Nxe5 {[%clk 0:02:37.4]} 14. Nxe5
{[%clk 0:02:39.5]} 14... dxe5 {[%clk 0:02:38.3]} 15. Qc2 {[%clk 0:02:33.7]}
15... Rd8 {[%clk 0:02:32.9]} 16. Nc4 {[%clk 0:02:32.3]} 16... Qe6 {[%clk
0:02:31.6]} 17. b3 {[%clk 0:02:25.4]} 17... Rd7 {[%clk 0:02:26.9]} 18. f3 {[%clk
0:02:15]} 18... Rad8 {[%clk 0:02:16.3]} 19. Be3 {[%clk 0:02:14.6]} 19... a6
{[%clk 0:02:13.6]} 20. a5 {[%clk 0:02:09.8]} 20... h5 {[%clk 0:01:59.7]} 21.
Rad1 {[%clk 0:02:06.8]} 21... Kh7 {[%clk 0:01:56.3]} 22. Bg2 {[%clk 0:02:06.5]}
22... Bxg2 {[%clk 0:01:55.9]} 23. Kxg2 {[%clk 0:02:07.4]} 23... Bh6 {[%clk
0:01:56.3]} 24. Bxh6 {[%clk 0:02:03]} 24... Kxh6 {[%clk 0:01:57.2]} 25. Qc1+
{[%clk 0:02:02.6]} 25... Kg7 {[%clk 0:01:57]} 26. Rxd7 {[%clk 0:01:49.4]} 26...
Rxd7 {[%clk 0:01:57.1]} 27. Rd1 {[%clk 0:01:48.3]} 27... Ne8 {[%clk 0:01:42.6]}
28. Rxd7 {[%clk 0:01:45.4]} 28... Qxd7 {[%clk 0:01:41.3]} 29. Nxe5 {[%clk
0:01:45.7]} 29... Qb5 {[%clk 0:01:37]} 30. Qf4 {[%clk 0:01:03.1]} 30... f6
{[%clk 0:01:30.5]} 31. Nc4 {[%clk 0:00:41.4]} 31... Qxb3 {[%clk 0:01:29]} 32.
Ne3 {[%clk 0:00:41.4]} 32... Qb2+ {[%clk 0:01:21.4]} 33. Kh3 {[%clk 0:00:40.6]}
33... Qxc3 {[%clk 0:01:17.9]} 34. Nd5 {[%clk 0:00:40.2]} 34... Qxa5 {[%clk
0:01:11.1]} 35. g4 {[%clk 0:00:34.5]} 35... hxg4+ {[%clk 0:01:10.4]} 36. Qxg4
{[%clk 0:00:35.4]} 36... Qb5 {[%clk 0:01:04.7]} 37. Qe6 {[%clk 0:00:29.9]} 37...
Qf1+ {[%clk 0:00:38.6]} 38. Kg3 {[%clk 0:00:26.1]} 38... Qe1+ {[%clk 0:00:36.6]}
39. Kh3 {[%clk 0:00:23.8]} 39... Qf1+ {[%clk 0:00:36.7]} 40. Kg3 {[%clk
0:00:24]} 40... Qg1+ {[%clk 0:00:36.1]} 41. Kh3 {[%clk 0:00:23.7]} 41... Qf1+
{[%clk 0:00:33]} 1/2-1/2

[Event "*** Titled Tuesday Blitz"]
[Site "Chess.com"]
[Date "2020.04.14"]
[Round "5"]
[White "Kaua18"]
[Black "CyberneticLion"]
[Result "0-1"]
[WhiteElo "2256"]
[BlackElo "2488"]
[TimeControl "180+1"]
[EndTime "10:50:30 PDT"]
[Termination "CyberneticLion won on time"]

1. e4 {[%clk 0:03:00.9]} 1... e5 {[%clk 0:02:58.1]} 2. Nf3 {[%clk 0:03:00.5]}
2... Nc6 {[%clk 0:02:57.8]} 3. d4 {[%clk 0:02:59.7]} 3... exd4 {[%clk
0:02:55.9]} 4. Bc4 {[%clk 0:02:59.8]} 4... Bb4+ {[%clk 0:02:53.9]} 5. c3 {[%clk
0:02:59.3]} 5... dxc3 {[%clk 0:02:54.8]} 6. O-O {[%clk 0:02:59.2]} 6... d6
{[%clk 0:02:53.4]} 7. Qb3 {[%clk 0:02:39]} 7... Qe7 {[%clk 0:02:49.4]} 8. Nxc3
{[%clk 0:02:31]} 8... Bxc3 {[%clk 0:02:48.4]} 9. Qxc3 {[%clk 0:02:30.5]} 9...
Nf6 {[%clk 0:02:44.6]} 10. Re1 {[%clk 0:02:20.1]} 10... O-O {[%clk 0:02:39.3]}
11. Bg5 {[%clk 0:02:10.3]} 11... h6 {[%clk 0:02:34]} 12. Bh4 {[%clk 0:02:07.2]}
12... Re8 {[%clk 0:02:10.9]} 13. Bd5 {[%clk 0:02:05.4]} 13... Bd7 {[%clk
0:02:07.4]} 14. b4 {[%clk 0:01:48.4]} 14... a6 {[%clk 0:01:59.3]} 15. a4 {[%clk
0:01:38.8]} 15... Rab8 {[%clk 0:01:49.8]} 16. b5 {[%clk 0:01:31]} 16... axb5
{[%clk 0:01:49.9]} 17. axb5 {[%clk 0:01:31.9]} 17... Ne5 {[%clk 0:01:50.3]} 18.
Nd4 {[%clk 0:01:07.4]} 18... Nxd5 {[%clk 0:01:46.9]} 19. Qg3 {[%clk 0:00:49.2]}
19... Nf6 {[%clk 0:01:28.7]} 20. Nf5 {[%clk 0:00:35.6]} 20... Bxf5 {[%clk
0:01:21.7]} 21. exf5 {[%clk 0:00:36.5]} 21... Qd8 {[%clk 0:01:19.6]} 22. f4
{[%clk 0:00:28.6]} 22... Ned7 {[%clk 0:01:19.7]} 23. Rxe8+ {[%clk 0:00:23.5]}
23... Qxe8 {[%clk 0:01:20.6]} 24. Re1 {[%clk 0:00:23.6]} 24... Qf8 {[%clk
0:01:21.1]} 25. Qc3 {[%clk 0:00:22.8]} 25... Re8 {[%clk 0:01:09.1]} 26. Qxc7
{[%clk 0:00:21.7]} 26... Rxe1+ {[%clk 0:01:08.8]} 27. Bxe1 {[%clk 0:00:21.9]}
27... Qe7 {[%clk 0:01:08.6]} 28. Qc1 {[%clk 0:00:20.4]} 28... Ng4 {[%clk
0:01:05.9]} 29. h3 {[%clk 0:00:19.5]} 29... Qe3+ {[%clk 0:01:06.2]} 30. Qxe3
{[%clk 0:00:19.5]} 30... Nxe3 {[%clk 0:01:07.1]} 31. Bb4 {[%clk 0:00:19.8]}
31... d5 {[%clk 0:01:01.5]} 32. g4 {[%clk 0:00:19.3]} 32... h5 {[%clk
0:00:57.5]} 33. Kf2 {[%clk 0:00:18.8]} 33... d4 {[%clk 0:00:58]} 34. gxh5 {[%clk
0:00:05.9]} 34... Nxf5 {[%clk 0:00:57.7]} 35. Kf3 {[%clk 0:00:06.1]} 35... Nf6
{[%clk 0:00:57.9]} 36. Bd2 {[%clk 0:00:05]} 36... Nd6 {[%clk 0:00:53.9]} 37. b6
{[%clk 0:00:03.4]} 37... Nc4 {[%clk 0:00:54.3]} 38. Bc1 {[%clk 0:00:02.8]} 38...
d3 {[%clk 0:00:53.7]} 39. h6 {[%clk 0:00:03.7]} 39... gxh6 {[%clk 0:00:53.1]}
0-1

[Event "*** Titled Tuesday Blitz"]
[Site "Chess.com"]
[Date "2020.04.14"]
[Round "5"]
[White "queen_iryna"]
[Black "FROGGY64"]
[Result "0-1"]
[WhiteElo "2202"]
[BlackElo "2368"]
[TimeControl "180+1"]
[EndTime "10:50:30 PDT"]
[Termination "FROGGY64 won by resignation"]

1. d4 {[%clk 0:03:00.9]} 1... e6 {[%clk 0:02:59.1]} 2. Nc3 {[%clk 0:02:57.6]}
2... f5 {[%clk 0:02:57.8]} 3. e4 {[%clk 0:02:56.6]} 3... fxe4 {[%clk 0:02:53.1]}
4. Nxe4 {[%clk 0:02:57.5]} 4... Nf6 {[%clk 0:02:53]} 5. Bg5 {[%clk 0:02:57.5]}
5... Be7 {[%clk 0:02:53.1]} 6. Bxf6 {[%clk 0:02:57.1]} 6... Bxf6 {[%clk
0:02:53.2]} 7. Nf3 {[%clk 0:02:57.8]} 7... Nc6 {[%clk 0:02:51.7]} 8. c3 {[%clk
0:02:56.6]} 8... O-O {[%clk 0:02:51.7]} 9. Bd3 {[%clk 0:02:56.4]} 9... d6 {[%clk
0:02:50.7]} 10. Qc2 {[%clk 0:02:56]} 10... h6 {[%clk 0:02:50.1]} 11. h4 {[%clk
0:02:56]} 11... e5 {[%clk 0:02:49.9]} 12. d5 {[%clk 0:02:40.4]} 12... Ne7 {[%clk
0:02:49]} 13. c4 {[%clk 0:02:40]} 13... Nf5 {[%clk 0:02:47.5]} 14. O-O-O {[%clk
0:02:14.8]} 14... Nd4 {[%clk 0:02:43.9]} 15. Nxd4 {[%clk 0:02:14]} 15... exd4
{[%clk 0:02:44]} 16. g3 {[%clk 0:02:05.1]} 16... Bg4 {[%clk 0:02:41.4]} 17. Rde1
{[%clk 0:01:58]} 17... Bf3 {[%clk 0:02:41.4]} 18. Rhg1 {[%clk 0:01:56.9]} 18...
a6 {[%clk 0:02:36.8]} 19. Kb1 {[%clk 0:01:40]} 19... Be5 {[%clk 0:02:36.7]} 20.
Nd2 {[%clk 0:01:32.4]} 20... Rb8 {[%clk 0:02:24.5]} 21. Bf5 {[%clk 0:01:26.3]}
21... d3 {[%clk 0:02:19.4]} 22. Qxd3 {[%clk 0:01:16.8]} 22... Qf6 {[%clk
0:02:16]} 23. Be6+ {[%clk 0:01:12]} 23... Kh8 {[%clk 0:02:14.9]} 24. Nxf3 {[%clk
0:00:35.6]} 24... Qxf3 {[%clk 0:02:14.2]} 25. Qxf3 {[%clk 0:00:35.7]} 25... Rxf3
{[%clk 0:02:14.1]} 26. Re2 {[%clk 0:00:31.8]} 26... Rbf8 {[%clk 0:02:14.3]} 27.
Rg2 {[%clk 0:00:31.8]} 27... Bd4 {[%clk 0:02:12.9]} 28. Bg4 {[%clk 0:00:28.9]}
28... Rxf2 {[%clk 0:01:46.1]} 29. Rexf2 {[%clk 0:00:27.1]} 29... Bxf2 {[%clk
0:01:45.2]} 30. Bc8 {[%clk 0:00:21.5]} 30... Bxg3 {[%clk 0:01:27.5]} 31. Bxb7
{[%clk 0:00:21.5]} 31... Bxh4 {[%clk 0:01:26.9]} 32. Bxa6 {[%clk 0:00:21.7]}
32... Bg5 {[%clk 0:01:25.9]} 33. b4 {[%clk 0:00:21.2]} 33... Rf1+ {[%clk
0:01:24.1]} 34. Kc2 {[%clk 0:00:20.3]} 34... Ra1 {[%clk 0:01:23]} 35. Kb3 {[%clk
0:00:19.5]} 35... Bf6 {[%clk 0:01:22.2]} 36. c5 {[%clk 0:00:18.3]} 36... Rb1+
{[%clk 0:01:19.9]} 37. Kc4 {[%clk 0:00:18.4]} 37... Be5 {[%clk 0:01:17.7]} 38.
Kb5 {[%clk 0:00:16.7]} 38... h5 {[%clk 0:01:17.3]} 39. Kc6 {[%clk 0:00:16.4]}
39... dxc5 {[%clk 0:01:17.1]} 40. bxc5 {[%clk 0:00:16.3]} 40... Rc1 {[%clk
0:01:17.1]} 41. Bc8 {[%clk 0:00:15.2]} 41... Bd6 {[%clk 0:01:16]} 42. a4 {[%clk
0:00:13.7]} 42... Rxc5+ {[%clk 0:01:15.3]} 43. Kd7 {[%clk 0:00:13.9]} 43... Rxd5
{[%clk 0:01:15]} 44. Ke6 {[%clk 0:00:12.7]} 44... Ra5 {[%clk 0:01:14.3]} 45. Bd7
{[%clk 0:00:12.8]} 45... Kh7 {[%clk 0:01:12.6]} 46. Kf7 {[%clk 0:00:12.8]} 46...
g5 {[%clk 0:01:10.3]} 47. Bf5+ {[%clk 0:00:11.1]} 47... Rxf5+ {[%clk 0:01:09.7]}
0-1

[Event "*** Titled Tuesday Blitz"]
[Site "Chess.com"]
[Date "2020.04.14"]
[Round "5"]
[White "MasterKroket"]
[Black "Mourinho_Jose"]
[Result "1-0"]
[WhiteElo "2448"]
[BlackElo "2612"]
[TimeControl "180+1"]
[EndTime "10:50:31 PDT"]
[Termination "MasterKroket won on time"]

1. d4 {[%clk 0:03:00.9]} 1... d5 {[%clk 0:02:59.9]} 2. c4 {[%clk 0:03:01.3]}
2... e6 {[%clk 0:03:00]} 3. Nf3 {[%clk 0:03:01.6]} 3... Nf6 {[%clk 0:02:59.9]}
4. Nc3 {[%clk 0:03:02.1]} 4... Be7 {[%clk 0:02:59.8]} 5. Bf4 {[%clk 0:03:02.4]}
5... O-O {[%clk 0:02:59.3]} 6. e3 {[%clk 0:03:03]} 6... b6 {[%clk 0:02:59.6]} 7.
cxd5 {[%clk 0:03:03]} 7... Nxd5 {[%clk 0:02:59.1]} 8. Nxd5 {[%clk 0:03:01.4]}
8... Qxd5 {[%clk 0:02:57.1]} 9. a3 {[%clk 0:03:00.7]} 9... c5 {[%clk 0:02:53.3]}
10. Rc1 {[%clk 0:02:59.9]} 10... Bb7 {[%clk 0:02:51.8]} 11. Bc4 {[%clk
0:02:56.2]} 11... Qd8 {[%clk 0:02:43.1]} 12. O-O {[%clk 0:02:43.6]} 12... Nd7
{[%clk 0:02:43.2]} 13. d5 {[%clk 0:02:37.9]} 13... exd5 {[%clk 0:02:42.7]} 14.
Bxd5 {[%clk 0:02:38.2]} 14... Bxd5 {[%clk 0:02:42.6]} 15. Qxd5 {[%clk
0:02:39.1]} 15... Nf6 {[%clk 0:02:43.3]} 16. Qc4 {[%clk 0:02:35.3]} 16... Qc8
{[%clk 0:02:37.5]} 17. Rfd1 {[%clk 0:02:32.8]} 17... Qb7 {[%clk 0:02:37]} 18.
Rd3 {[%clk 0:02:13.1]} 18... Rad8 {[%clk 0:02:29.5]} 19. Rcd1 {[%clk 0:02:13]}
19... b5 {[%clk 0:02:21.4]} 20. Qc2 {[%clk 0:01:58.4]} 20... Rxd3 {[%clk
0:02:20.1]} 21. Rxd3 {[%clk 0:01:57.5]} 21... c4 {[%clk 0:02:17.9]} 22. Rd1
{[%clk 0:01:53.1]} 22... h6 {[%clk 0:02:12.1]} 23. Be5 {[%clk 0:01:52.6]} 23...
Ne4 {[%clk 0:02:08]} 24. Rd4 {[%clk 0:01:45.8]} 24... Nc5 {[%clk 0:01:43.1]} 25.
Rg4 {[%clk 0:01:44.8]} 25... f6 {[%clk 0:01:34.3]} 26. Qg6 {[%clk 0:01:35.1]}
26... Rf7 {[%clk 0:01:33.3]} 27. Bd4 {[%clk 0:01:28.8]} 27... Ne6 {[%clk
0:01:04]} 28. Qxh6 {[%clk 0:01:20.9]} 28... b4 {[%clk 0:00:59.5]} 29. axb4
{[%clk 0:01:14.3]} 29... Qxb4 {[%clk 0:00:29.4]} 30. g3 {[%clk 0:00:55.5]} 30...
Qb3 {[%clk 0:00:22.9]} 31. Qg6 {[%clk 0:00:46.3]} 31... Qd1+ {[%clk 0:00:10.7]}
32. Kg2 {[%clk 0:00:45.6]} 32... Qe2 {[%clk 0:00:11.1]} 33. Rh4 {[%clk
0:00:40.7]} 33... Nf8 {[%clk 0:00:08.9]} 34. Qh5 {[%clk 0:00:39.5]} 1-0

[Event "*** Titled Tuesday Blitz"]
[Site "Chess.com"]
[Date "2020.04.14"]
[Round "5"]
[White "PowerThinking2650"]
[Black "Sashadav97"]
[Result "0-1"]
[WhiteElo "2212"]
[BlackElo "2602"]
[TimeControl "180+1"]
[EndTime "10:50:32 PDT"]
[Termination "Sashadav97 won on time"]

1. e4 {[%clk 0:03:00.9]} 1... c5 {[%clk 0:02:59.2]} 2. Nf3 {[%clk 0:02:59.9]}
2... Nc6 {[%clk 0:02:59.3]} 3. d4 {[%clk 0:02:58.9]} 3... cxd4 {[%clk
0:03:00.2]} 4. Nxd4 {[%clk 0:02:59.3]} 4... Nf6 {[%clk 0:03:00.8]} 5. Nc3 {[%clk
0:02:58.6]} 5... d6 {[%clk 0:03:01]} 6. Bc4 {[%clk 0:02:58]} 6... e6 {[%clk
0:03:00.3]} 7. Be3 {[%clk 0:02:56.7]} 7... a6 {[%clk 0:02:59.4]} 8. Qe2 {[%clk
0:02:55.6]} 8... Be7 {[%clk 0:02:58.2]} 9. O-O-O {[%clk 0:02:54.5]} 9... Nxd4
{[%clk 0:02:58.4]} 10. Bxd4 {[%clk 0:02:50.7]} 10... b5 {[%clk 0:02:58.9]} 11.
Bb3 {[%clk 0:02:47.9]} 11... Bb7 {[%clk 0:02:58.8]} 12. f4 {[%clk 0:02:19.4]}
12... O-O {[%clk 0:02:19.5]} 13. f5 {[%clk 0:02:05.2]} 13... b4 {[%clk
0:02:06.5]} 14. Na4 {[%clk 0:01:57]} 14... e5 {[%clk 0:02:06.4]} 15. Bxe5 {[%clk
0:01:47.7]} 15... Nxe4 {[%clk 0:01:57.5]} 16. Bf4 {[%clk 0:00:37.8]} 16... Bf6
{[%clk 0:01:17.4]} 17. Bd5 {[%clk 0:00:28]} 17... Bxd5 {[%clk 0:01:16.7]} 18.
Rxd5 {[%clk 0:00:27.9]} 18... Re8 {[%clk 0:01:17.1]} 19. Re1 {[%clk 0:00:22.4]}
19... Qd7 {[%clk 0:00:48.2]} 20. Nb6 {[%clk 0:00:20.4]} 20... Qc6 {[%clk
0:00:48]} 21. Nxa8 {[%clk 0:00:13]} 21... Qxd5 {[%clk 0:00:48.1]} 22. Nc7 {[%clk
0:00:12.8]} 22... Qxa2 {[%clk 0:00:47.9]} 23. Qxe4 {[%clk 0:00:07.3]} 23...
Qxb2+ {[%clk 0:00:42.5]} 24. Kd1 {[%clk 0:00:06.9]} 24... Qb1+ {[%clk
0:00:30.3]} 25. Bc1 {[%clk 0:00:04.3]} 25... Rxe4 {[%clk 0:00:26]} 26. Rxe4
{[%clk 0:00:04.4]} 26... h5 {[%clk 0:00:24.8]} 27. Re8+ {[%clk 0:00:02.5]} 27...
Kh7 {[%clk 0:00:23.7]} 0-1

[Event "*** Titled Tuesday Blitz"]
[Site "Chess.com"]
[Date "2020.04.14"]
[Round "5"]
[White "allvim"]
[Black "almatyonelove"]
[Result "1-0"]
[WhiteElo "2283"]
[BlackElo "2657"]
[TimeControl "180+1"]
[EndTime "10:50:32 PDT"]
[Termination "allvim won by resignation"]

1. e4 {[%clk 0:02:58.7]} 1... e5 {[%clk 0:02:59]} 2. Nf3 {[%clk 0:02:58]} 2...
Nc6 {[%clk 0:02:59.2]} 3. Bc4 {[%clk 0:02:57.8]} 3... Bc5 {[%clk 0:02:56.2]} 4.
O-O {[%clk 0:02:57.6]} 4... Nf6 {[%clk 0:02:56.6]} 5. d4 {[%clk 0:02:57.7]} 5...
exd4 {[%clk 0:02:51.5]} 6. e5 {[%clk 0:02:58.6]} 6... d5 {[%clk 0:02:52]} 7.
exf6 {[%clk 0:02:58.6]} 7... dxc4 {[%clk 0:02:52.6]} 8. Re1+ {[%clk 0:02:58.3]}
8... Be6 {[%clk 0:02:52.2]} 9. Ng5 {[%clk 0:02:58.5]} 9... Qd5 {[%clk
0:02:49.5]} 10. Nc3 {[%clk 0:02:58]} 10... Qf5 {[%clk 0:02:48]} 11. Nce4 {[%clk
0:02:56.7]} 11... O-O-O {[%clk 0:02:46.7]} 12. g4 {[%clk 0:02:48.9]} 12... Qxg4+
{[%clk 0:02:31]} 13. Qxg4 {[%clk 0:02:42.5]} 13... Bxg4 {[%clk 0:02:31.9]} 14.
Nxf7 {[%clk 0:02:38.4]} 14... Bb4 {[%clk 0:02:22.7]} 15. Nxh8 {[%clk 0:02:24.3]}
15... Rxh8 {[%clk 0:02:21.5]} 16. c3 {[%clk 0:02:19.8]} 16... dxc3 {[%clk
0:02:18.8]} 17. bxc3 {[%clk 0:02:20.7]} 17... Bf8 {[%clk 0:02:18.8]} 18. Bf4
{[%clk 0:01:34]} 18... Bf5 {[%clk 0:01:53.1]} 19. Ng3 {[%clk 0:01:27.1]} 19...
Bg6 {[%clk 0:01:50.9]} 20. Bg5 {[%clk 0:01:13.9]} 20... gxf6 {[%clk 0:01:49.4]}
21. Bxf6 {[%clk 0:01:14.8]} 21... Rg8 {[%clk 0:01:49.9]} 22. h4 {[%clk
0:01:09.7]} 22... Bd6 {[%clk 0:01:49.1]} 23. Re3 {[%clk 0:01:02.3]} 23... Bd3
{[%clk 0:01:48]} 24. Rae1 {[%clk 0:00:57.4]} 24... b5 {[%clk 0:01:48.2]} 25.
Re8+ {[%clk 0:00:56.3]} 25... Rxe8 {[%clk 0:01:48]} 26. Rxe8+ {[%clk 0:00:57.2]}
26... Kb7 {[%clk 0:01:48.5]} 27. Ne4 {[%clk 0:00:50.3]} 27... a5 {[%clk
0:01:46.3]} 28. Nxd6+ {[%clk 0:00:30.2]} 28... cxd6 {[%clk 0:01:45.5]} 29. f4
{[%clk 0:00:29.4]} 29... b4 {[%clk 0:01:44.9]} 30. cxb4 {[%clk 0:00:29.4]} 30...
axb4 {[%clk 0:01:45.8]} 31. Kf2 {[%clk 0:00:28.8]} 31... c3 {[%clk 0:01:45.3]}
32. Ke3 {[%clk 0:00:27.4]} 32... Bf5 {[%clk 0:01:44.9]} 33. Rf8 {[%clk
0:00:21.3]} 33... Bb1 {[%clk 0:01:44.7]} 34. Rg8 {[%clk 0:00:15.4]} 34... Kb6
{[%clk 0:01:43.2]} 35. Rg2 {[%clk 0:00:13.4]} 35... Kc5 {[%clk 0:01:41.3]} 36.
Bh8 {[%clk 0:00:10.9]} 36... d5 {[%clk 0:01:41.1]} 37. f5 {[%clk 0:00:10]} 37...
d4+ {[%clk 0:01:41]} 38. Kf4 {[%clk 0:00:09]} 38... d3 {[%clk 0:01:40.9]} 39. f6
{[%clk 0:00:08.8]} 39... d2 {[%clk 0:01:41.4]} 40. f7 {[%clk 0:00:06.6]} 40...
d1=Q {[%clk 0:01:37.6]} 41. f8=Q+ {[%clk 0:00:07.5]} 41... Kb5 {[%clk 0:01:35]}
42. Rg5+ {[%clk 0:00:07.1]} 42... Kc4 {[%clk 0:01:31.6]} 43. Qg8+ {[%clk
0:00:04.5]} 43... Kd3 {[%clk 0:01:28.7]} 44. Rd5+ {[%clk 0:00:04.4]} 44... Kc2
{[%clk 0:01:28.3]} 45. Rxd1 {[%clk 0:00:05.3]} 45... Kxd1 {[%clk 0:01:29.2]} 46.
Qd5+ {[%clk 0:00:05.3]} 46... Kc1 {[%clk 0:01:27.6]} 47. Qxc6 {[%clk 0:00:05.1]}
47... Bxa2 {[%clk 0:01:28.1]} 48. Bxc3 {[%clk 0:00:04.4]} 48... bxc3 {[%clk
0:01:27.7]} 49. Qxc3+ {[%clk 0:00:05.3]} 49... Kd1 {[%clk 0:01:28.1]} 50. Qg3
{[%clk 0:00:06.2]} 50... Bb1 {[%clk 0:01:27.6]} 51. Ke3 {[%clk 0:00:07.1]} 1-0